Cogmind - Beta 12 --- EXPLORER MODE // 2023.03.03 @ 19:13:32 Player: Grimbling Result: Self-destructed Performance ------------- Evolutions (2) 1000 Regions Visited (5) 1000 Robots Destroyed (55) 275 Value Destroyed (2085) 2085 Prototype IDs (5) 100 Alien Tech Used (0) 0 Bonus (345) 345 TOTAL SCORE: 4805 Bonus ------- High Alert Combat Kills 67 Follower Combat Kills 93 Entered Garrisons 200 Friendly Fire -15 Cogmind --------- Core Integrity 391/550 Matter 347/400 Energy 280/280 System Corruption 4% Temperature Cool (54) Movement Treading (153) Location -8/Materials Parts ------- > --- POWER (2) -------- Light Deuterium Engine Nuclear Core > --- PROPULSION (3) --- Armored Treads Advanced Treads Advanced Treads > --- UTILITY (5) ------ Medium Matter Pod Improved Targeting Computer Recoil Stabilizer Light Armor Plating Hardlight Generator > --- WEAPON (2) ------- Heavy Assault Rifle Enhanced Autogun > --- INVENTORY (5) ---- Light Treads Improved Heat Sink Medium Storage Unit System Shield Autogun Peak State ------------ > --- POWER ------------ Nuclear Core Nuclear Core > --- PROPULSION ------- Armored Treads Advanced Treads Advanced Treads > --- UTILITY ---------- Improved Heat Sink Improved Heat Sink Utility Shielding Improved Weapon Shielding Hardlight Generator > --- WEAPON ----------- Ion Cannon Ion Cannon > --- INVENTORY -------- Heat Sink Medium Storage Unit Recoil Stabilizer [Rating: 34] Favorites ----------- Power Nuclear Core Engine Ion Engine Power Core Nuclear Core Propulsion Advanced Treads Treads Advanced Treads Utility Utility Shielding Device Hardlight Generator Storage Medium Matter Pod Processor Signal Interpreter Protection Utility Shielding Weapon Ion Cannon Energy Gun Small Laser Energy Cannon Ion Cannon Ballistic Gun Gauss Rifle Ballistic Cannon Flak Cannon Build | -11 -10 -9 -8 -8 -8 ------- Run | Jun Mat Mat Mat Gar Mat Slots Evolved 5 | . 1 2 2 . . Power 1 | . . . 1 . . Propulsion 1 | . . . 1 . . Utility 3 | . 1 2 . . . Weapon . | . . . . . . Parts Attached 41 | 7 5 7 7 8 7 Power 6 | 1 . . 2 1 2 Engine 2 | 1 . . . . 1 Core 4 | . . . 2 1 1 Reactor . | . . . . . . Propulsion 7 | 2 . 1 3 . 1 Treads 7 | 2 . 1 3 . 1 Leg . | . . . . . . Wheel . | . . . . . . Hover . | . . . . . . Flight . | . . . . . . Utility 16 | 3 2 2 2 6 1 Device 6 | 1 . . 2 3 . Storage 3 | 1 1 . . 1 . Processor 3 | . 1 1 . . 1 Hackware . | . . . . . . Protection 4 | 1 . 1 . 2 . Artifact . | . . . . . . Weapon 12 | 1 3 4 . 1 3 Energy Gun 4 | . 3 1 . . . Energy Cannon 3 | . . 3 . . . Ballistic Gun 4 | 1 . . . 1 2 Ballistic Cannon 1 | . . . . . 1 Launcher . | . . . . . . Special Weapon . | . . . . . . Impact Weapon . | . . . . . . Slashing Weapon . | . . . . . . Piercing Weapon . | . . . . . . Special Melee Weapon . | . . . . . . Unidentified Prototypes 2 | . . 1 . . 1 Parts Lost . | . . . . . . Power . | . . . . . . Propulsion . | . . . . . . Utility . | . . . . . . Weapon . | . . . . . . Highest Loss Streak . | . . . . . . To Critical Strikes . | . . . . . . Average Slot Usage (%) 96 | . 94 99 95 95 99 Engine 5 | . 12 10 2 . 7 Core 8 | . . . 11 15 8 Treads 23 | . 25 20 23 25 25 Device 15 | . 12 10 13 20 16 Storage 2 | . . . . 1 8 Processor 7 | . 8 19 16 2 . Protection 15 | . 12 19 10 16 15 Energy Gun 2 | . 10 3 . . . Energy Cannon 6 | . . 16 16 7 . Ballistic Gun 6 | . 11 . . 4 14 Naked Turns . | . . . . . . Heaviest Build 36 | 18 11 20 33 36 33 Greatest Support 67 | 40 40 43 67 64 64 Greatest Overweight (x) 1 | 1 . . . . . Average Overweight (x) . | . . . . . . Largest Inventory Capacity 20 | 10 20 5 5 5 5 Average Capacity 5 | 6 5 5 5 5 5 Most Carried 5 | 4 5 5 4 5 5 Average Carried 3 | 1 4 4 2 2 4 Final Capacity 5 | 5 5 5 5 5 5 Final Carried 5 | 4 5 3 4 2 5 Class Distribution -------------------- 100% | Hacker-Mutant Dominant Class ---------------- Hacker-Mutant | -10/Materials Hacker-Mutant | -9/Materials Hacker-Mutant | -8/Materials Hacker-Mutant | -8/Garrison Hacker-Mutant | -8/Materials Resources | -11 -10 -9 -8 -8 -8 ----------- Run | Jun Mat Mat Mat Gar Mat Matter Collected 972 | 234 96 72 40 276 254 Remotely . | . . . . . . Salvage Created 1926 | . 60 460 51 839 516 Parts 110 | . 2 30 2 43 33 Haulers Intercepted 1 | . . . . . 1 Recyclers Shooed . | . . . . . . Parts Field Recycled . | . . . . . . Retrieved Matter . | . . . . . . Parts Self-Destructed . | . . . . . . Prevented . | . . . . . . Kills | -11 -10 -9 -8 -8 -8 ------- Run | Jun Mat Mat Mat Gar Mat Combat Hostiles Destroyed 51 | . 2 16 1 22 10 Melee 1 | . . 1 . . . Guns 18 | . 2 . . 6 10 Cannons 32 | . . 15 1 16 . Classes Destroyed 10 | . 2 2 . 4 2 Worker 1 | . . . . . 1 Hauler 1 | . . . . . 1 Watcher 2 | . 1 . . . 1 Swarmer 19 | . 2 8 . 7 2 Cutter 2 | . . . . 2 . Grunt 15 | . . 5 . 4 6 Sentry 11 | . . 3 1 5 2 Specialist 2 | . . . . 2 . Hunter 1 | . . . . 1 . Programmer 1 | . . . . 1 . Best Kill Streak 7 | . 2 7 1 7 4 Combat Bots Only 7 | . 2 7 1 7 4 Max Kills in Single Turn 2 | . 1 1 1 2 1 Gunslinging . | . . . . . . Exploded . | . . . . . . Melee 1 | . . 1 . . . Uniques/NPCs Destroyed . | . . . . . . Combat | -11 -10 -9 -8 -8 -8 -------- Run | Jun Mat Mat Mat Gar Mat Damage Taken 1226 | . 60 320 36 670 140 Core 249 | . 18 72 . 137 22 Absorbed by Shields 539 | . . . . 441 98 Redirected to Shielding 117 | . 1 23 2 90 1 Core Remaining (%) 91 | 100 92 82 . . . Volleys Fired 136 | . 4 29 3 73 27 Largest 2 | . 2 2 2 2 2 Hottest 120 | . 60 120 120 120 67 Shots Fired 248 | . 8 58 6 121 55 Gun 91 | . 8 4 . 25 54 Cannon 157 | . . 54 6 96 1 Launcher . | . . . . . . Special . | . . . . . . Kinetic 84 | . 4 . . 25 55 Thermal 164 | . 4 58 6 96 . Explosive . | . . . . . . Electromagnetic . | . . . . . . Robot Hit Streak 50 | . 7 15 4 50 17 Robot Miss Streak 2 | . . 1 1 1 2 Penetration Max . | . . . . . . Secondary Targets 1 | . . . . . 1 Max Gunslinging Chain 1 | . . . . . 1 Shots Hit Robots 190 | . 7 44 4 90 45 Core Hits 79 | . 3 18 1 30 27 Critical Kills . | . . . . . . Critical Parts Destroyed . | . . . . . . Critical Strikes . | . . . . . . Melee Attacks . | . . . . . . Impact . | . . . . . . Slashing . | . . . . . . Piercing . | . . . . . . Sneak Attacks . | . . . . . . Combat Hostiles . | . . . . . . Follow-up Attacks . | . . . . . . Damage Inflicted 4076 | . 83 993 92 2137 771 Guns 1174 | . 83 50 . 309 732 Cannons 2895 | . . 936 92 1828 39 Explosions . | . . . . . . Melee . | . . . . . . Ramming 7 | . . 7 . . . Kinetic 1116 | . 36 . . 309 771 Thermal 2953 | . 47 986 92 1828 . Explosive . | . . . . . . Electromagnetic . | . . . . . . Impact . | . . . . . . Slashing . | . . . . . . Piercing . | . . . . . . Highest Corruption 4 | . . . . 4 4 Average Corruption 3 | . . . . 3 4 Corruption Purged . | . . . . . . Corruption Blocked . | . . . . . . Effects 41 | . . . . 25 16 Message Errors 11 | . . . . 7 4 Matter Fused 9 | . . . . 4 5 Heat Flow Errors 4 | . . . . 3 1 Energy Discharges 3 | . . . . 2 1 Parts Fused 1 | . . . . . 1 Data Loss (minor) 5 | . . . . 4 1 Data Loss (major) 3 | . . . . 2 1 Misfires 2 | . . . . 1 1 Alerts 2 | . . . . 1 1 Weapon Failures 1 | . . . . 1 . Overload Shots . | . . . . . . Overflow Damage 39 | . . 10 . 29 . Projectiles 39 | . . 10 . 29 . Explosions . | . . . . . . Melee . | . . . . . . Knockbacks . | . . . . . . Impact . | . . . . . . Kinetic . | . . . . . . Secondary . | . . . . . . Self-Inflicted Damage . | . . . . . . Shots . | . . . . . . Rammed 3 | . . 3 . . . Targets Rammed 4 | . . 4 . . . Kicked . | . . . . . . Crushed 1 | . . 1 . . . Highest Temperature 308 | . . 285 207 308 167 Average Temperature 84 | . . 103 111 96 32 Received Heat Transfer 511 | . 18 81 27 305 80 Effects 2 | . . 2 . . . Energy Bleed 2 | . . 2 . . . Siege Activations . | . . . . . . Robots Corrupted . | . . . . . . Combat Hostiles . | . . . . . . Parts Fried . | . . . . . . Impact Corruptions . | . . . . . . Robots Melted . | . . . . . . Combat Hostiles . | . . . . . . Parts Melted 10 | . 1 2 . 7 . Heat Transferred 4722 | . 100 1665 148 2809 . Parts Sabotaged . | . . . . . . Parts Stolen . | . . . . . . Parts Stripped . | . . . . . . Power Chain Reactions . | . . . . . . Missiles Intercepted . | . . . . . . Alert | -11 -10 -9 -8 -8 -8 ------- Run | Jun Mat Mat Mat Gar Mat Peak Influence 684 | . 51 301 86 684 369 Initial 244 | . . 15 40 . 244 Average 208 | . 10 103 35 393 254 Maximum Alert Level 2 | . . 1 . 2 1 Low Security (%) 56 | 100 100 82 100 26 23 Level 1 22 | . . 17 . 12 76 Level 2 21 | . . . . 61 . Level 3 . | . . . . . . Level 4 . | . . . . . . Level 5 . | . . . . . . High Security . | . . . . . . Max Security . | . . . . . . Squads Dispatched 3 | . . 1 . . 2 Investigation . | . . . . . . Extermination . | . . . . . . Reinforcement 2 | . . 1 . . 1 Assault . | . . . . . . Garrison 1 | . . . . . 1 Intercept . | . . . . . . Searches Triggered . | . . . . . . Construction Impeded . | . . . . . . Haulers Reinforced . | . . . . . . Active Scanning Responses . | . . . . . . Cargo Convoy Interrupts . | . . . . . . Stealth | -11 -10 -9 -8 -8 -8 --------- Run | Jun Mat Mat Mat Gar Mat Distress Signals 4 | . . 2 . . 2 Communications Jammed . | . . . . . . Distress Signals . | . . . . . . Times Spotted 75 | . 5 23 1 25 21 Peak Tracking Total 7 | . 2 5 2 7 5 Tactical Retreats 1 | . . . . 1 . Traps | -11 -10 -9 -8 -8 -8 ------- Run | Jun Mat Mat Mat Gar Mat Traps Triggered 2 | . . . . 1 1 Indirectly . | . . . . . . Trap Hack Attempts . | . . . . . . Triggered . | . . . . . . Disarmed . | . . . . . . Reprogrammed 13 | . 6 7 . . . Reused . | . . . . . . Traps Extracted . | . . . . . . Installed . | . . . . . . Triggered . | . . . . . . Machines | -11 -10 -9 -8 -8 -8 ---------- Run | Jun Mat Mat Mat Gar Mat Machines Disabled 5 | . . . . 5 . Max in Single Turn 1 | . . . . 1 . Garrison Relay 2 | . . . . 2 . Machines Repaired . | . . . . . . Machines Sabotaged . | . . . . . . Overloaded Fab Kills . | . . . . . . Hacking | -11 -10 -9 -8 -8 -8 --------- Run | Jun Mat Mat Mat Gar Mat Machines Accessed 16 | . 4 5 2 3 2 Terminals 14 | . 4 5 1 3 1 Fabricators . | . . . . . . Repair Stations . | . . . . . . Recycling Units . | . . . . . . Scanalyzers 1 | . . . . . 1 Garrison Access 1 | . . . 1 . . Total Hacks 29 | . 10 11 3 3 2 Successful 15 | . 4 6 2 3 . Failed 14 | . 6 5 1 . 2 Catastrophic 3 | . 1 1 . . 1 Database Lockouts . | . . . . . . Manual 14 | . 4 7 2 . 1 Terminals 27 | . 10 11 2 3 1 Fabricators . | . . . . . . Repair Stations . | . . . . . . Recycling Units . | . . . . . . Scanalyzers 1 | . . . . . 1 Garrison Access 1 | . . . 1 . . Terminal Hacks 14 | . 4 6 1 3 . Prototype ID Bank 2 | . 2 . . . . Open Door 1 | . . . . 1 . Branch Access Points 2 | . 1 1 . . . Emergency Access Points 2 | . . 1 . 1 . Unreport Threat 3 | . . 2 1 . . Reprogram Traps 3 | . 1 2 . . . Security Stations 1 | . . . . 1 . Fabricator Hacks . | . . . . . . Repair Station Hacks . | . . . . . . Recycling Unit Hacks . | . . . . . . Scanalyzer . | . . . . . . Garrison Access Hacks 1 | . . . 1 . . Unlock Access 1 | . . . 1 . . Unauthorized Hacks . | . . . . . . Terminals . | . . . . . . Fabricators . | . . . . . . Repair Stations . | . . . . . . Recycling Units . | . . . . . . Scanalyzers . | . . . . . . Garrison Access . | . . . . . . Data Cores Recovered . | . . . . . . Used . | . . . . . . Hacking Detections 13 | . 3 5 2 1 2 Full Trace Events . | . . . . . . Feedback Events . | . . . . . . Feedback Blocked . | . . . . . . Robot Schematics Acquired . | . . . . . . Robots Built . | . . . . . . Authchips . | . . . . . . Time . | . . . . . . Total Robot Build Rating . | . . . . . . Part Schematics Acquired . | . . . . . . Parts Built . | . . . . . . Authchips . | . . . . . . Time . | . . . . . . Total Part Build Rating . | . . . . . . Parts Repaired . | . . . . . . Time . | . . . . . . Parts Recycled . | . . . . . . Recycled Matter . | . . . . . . Retrieved Matter . | . . . . . . Retrieved Components . | . . . . . . Parts Scanalyzed . | . . . . . . Part Schematics Acquired . | . . . . . . Parts Damaged . | . . . . . . Bothacking | -11 -10 -9 -8 -8 -8 ------------ Run | Jun Mat Mat Mat Gar Mat Used RIF Installer . | . . . . . . Robots Hacked . | . . . . . . Non-combat . | . . . . . . Combat . | . . . . . . Robot Hacks Applied . | . . . . . . Relay Couplers Released 8 | . . . . 8 . Machine Destruction 8 | . . . . 8 . Fabnet Peak Effective % . | . . . . . . Robots Rewired . | . . . . . . Allies Hacked . | . . . . . . Hacks Repelled . | . . . . . . Allies | -11 -10 -9 -8 -8 -8 -------- Run | Jun Mat Mat Mat Gar Mat Total Allies 2 | . . . . 2 . Largest Group 2 | . . . . 2 1 Highest-Rated Group 40 | . . . . 40 20 Highest-Rated Ally 20 | . . . . 20 20 Total Orders . | . . . . . . Ally Attacks 13 | . . . . 7 6 Total Damage 291 | . . . . 141 150 Kills 4 | . . . . 1 3 Allies Corrupted . | . . . . . . Allies Melted . | . . . . . . Intel | -11 -10 -9 -8 -8 -8 ------- Run | Jun Mat Mat Mat Gar Mat Robot Analysis Total . | . . . . . . Derelict Logs Recovered . | . . . . . . Drone Launches . | . . . . . . Drone Recoveries . | . . . . . . Exploration | -11 -10 -9 -8 -8 -8 ------------- Run | Jun Mat Mat Mat Gar Mat Turns Passed 3233 | 95 583 572 234 1110 639 Spaces Moved 1741 | 54 347 284 136 568 352 Core 5 | 5 . . . . . Treads 1736 | 49 347 284 136 568 352 Legs . | . . . . . . Wheels . | . . . . . . Hover . | . . . . . . Flight . | . . . . . . Fastest Speed 50 | 50 160 160 150 153 153 Average Speed 155 | 151 160 160 154 153 153 Slowest Speed 160 | 160 160 160 160 153 153 Overloaded Moves . | . . . . . . Propulsion Burnouts . | . . . . . . Robots Hopped . | . . . . . . Cave-ins Triggered . | . . . . . . Exploration Rate (%) 36 | 6 49 48 18 63 37 Regions Visited 5 Branch Regions . Pre-discovered Areas . | . . . . . . Known Exits Taken 4 | 1 1 1 1 . . Unknown Exits Taken . | . . . . . . Scrap Searched . | . . . . . . Spaces Dug . | . . . . . . Terrain Destroyed 3 | . . 3 . . . Melee . | . . . . . . Projectile 3 | . . 3 . . . AOE . | . . . . . . Terrain Rammed . | . . . . . . Walls Destroyed . | . . . . . . Machines Disabled . | . . . . . . Actions | -11 -10 -9 -8 -8 -8 --------- Run | Jun Mat Mat Mat Gar Mat Total 2032 | 65 366 345 155 691 410 Wait 51 | . 6 6 . 29 10 Move 1736 | 53 346 283 135 567 352 Hop . | . . . . . . Pick Up 15 | 4 1 4 1 . 5 Fast Attach 30 | 6 5 4 6 5 4 Attach 7 | 1 . 3 1 2 . Detach 20 | 1 1 4 5 7 2 Swap 4 | . . . . 1 3 Drop 28 | . 3 8 4 6 7 Fire 136 | . 4 29 3 73 27 Melee . | . . . . . . Ram . | . . . . . . Kick . | . . . . . . Crush 4 | . . 4 . . . Escape Stasis . | . . . . . . Rewire 1 | . . . . 1 . Trap . | . . . . . . Miscellaneous . | . . . . . . Route ------- -11/Junkyard -10/Materials (discovered 3 exits: *Mat x2 / Min) -9/Materials (discovered 3 exits: *Mat / *Min x2) -8/Materials -8/Garrison (discovered 2 exits: *Mat x2) -8/Materials History --------- Turn | Location | Event 8 | -11/Junkyard | Identified exit to Materials 8 | -11/Junkyard | Discovered exit to Materials (range 16) 96 | -11/Junkyard | Entered Materials 96 | -10/Materials | Evolved 1 slot: Utility x1 301 | -10/Materials | Build established: Hacker-Mutant 431 | -10/Materials | Identified exit to Mines 440 | -10/Materials | Identified exit to Materials 440 | -10/Materials | Discovered exit to Materials (range 10) 674 | -10/Materials | Discovered exit to Materials (range 4) 679 | -10/Materials | Entered another Materials area 679 | -9/Materials | Evolved 2 slots: Utility x2 898 | -9/Materials | Identified exit to Mines 898 | -9/Materials | Discovered exit to Mines (range 14) 947 | -9/Materials | Destroyed 7 combat bots 1162 | -9/Materials | Identified exit to Materials 1162 | -9/Materials | Discovered exit to Materials (range 16) 1251 | -9/Materials | Entered another Materials area 1251 | -8/Materials | Evolved 2 slots: Power x1, Propulsion x1 1460 | -8/Materials | Identified exit to Garrison 1485 | -8/Materials | Entered Garrison 1504 | -8/Garrison | Triggered checkpoint 1610 | -8/Garrison | Garrison Relay disabled 1798 | -8/Garrison | Triggered checkpoint 1867 | -8/Garrison | Triggered checkpoint 1948 | -8/Garrison | Destroyed 7 combat bots 2008 | -8/Garrison | Triggered checkpoint 2097 | -8/Garrison | Rescued a captive Derelict 2105 | -8/Garrison | Rescued a captive Derelict 2140 | -8/Garrison | Triggered checkpoint 2176 | -8/Garrison | Garrison Relay disabled 2222 | -8/Garrison | Identified exit to Materials 2222 | -8/Garrison | Discovered exit to Materials (range 10) 2230 | -8/Garrison | Learned Materials security intel 2398 | -8/Garrison | Triggered checkpoint 2538 | -8/Garrison | Triggered checkpoint 2559 | -8/Garrison | Discovered exit to Materials (range 15) 2595 | -8/Garrison | Entered Materials 2595 | -8/Materials | Accompanied by 1 ally 3226 | -8/Materials | Garrison activated, responded to threat 3234 | -8/Materials | Self-destructed Last Messages --------------- 03177_ O-16 Technician locks terminal. 03180_ K-01 Serf collects debris. 03190_ Dropped Utility Shielding. 03190_ Acquired Imp. Targeting Computer. 03193_ Dropped Lgt. Armor Plating. 03194_ Acquired Autogun. 03199_ G-47 Trooper destroyed. 03201_ D,YGGZHLIVB UYT9M%YQRJMS&=U=U7R8WIO 03201_ K-01 Serf collects debris. 03205_ Acquired 31 matter. 03207_ Acquired 7 matter. 03213_ G-47 Trooper destroyed. 03217_ K-01 Serf collects debris. 03221_ G-47 Trooper destroyed. 03221_ K-01 Serf collects debris. 03226_ Y-45 Defender calls for garrison reinforcements. 03226_ ALERT: Activating Garrison Access M001. 03228_ Y-45 Defender destroyed. 03231_ Acquired 3 matter. 03232_ K-01 Serf collects debris. Map ----- +----------------------------------------------------+ | ?????????????????????????????????????????????????? | | ?????????????????????????????????????????######### | | ?????????????????????????????????????????# | | ?????????????????????????????????????????# """ | | ?????????????????????????????????????????# """ | | ?????????????????????????????????????????# """ ! | | ?????????????????????????????????????????# | | ?????????????????????????????????????????# """ | | ?????????????????????????????????????????# """ | | ?????????????????????????????????????????# """ | | ?????????????????????????????????????????# | | ????????????????????????????????????##########+### | | ????????????????????????????????????# # # | | ????????????????????????????????????#! """ # # | | ?????????????? ?????????????????????# """ + * # | | ??????????????? ????????????????????# """ #]= [= | | ???????????????" #??????????????????#* # % | | ???????????????? Y ?????????????????# ] ?### | | ?????????????????# ????????????????######???# | | ?????????????????# ????????????????????????# ### | | ????????????????## #??????#######??????????# #?# | | ?????????????#### ####### #????????### ### | | ???????????? =o%=[k #????????# # | | ????????????????# T= %==%[k / #????????# # | | ????????????????#/ !% ![=%% #????????# + | | ????????????????# ###@### #????????# # | | ????????????????####???#= k=## ##????????# # | | ???????????????????????#!*= ## ######????## ## | | ???????????????????????# ## # #?????# ## | | ???????????????????????# !! ## #??????# # | | ???????????????????????#[! ## # #??????# + | | ???????????????????????#[! !## #####??????# # | | ???????????????????????# ## ##?????????# # | | ???????????????#+############ ########### # | | ??????????????# ^ * # | | ??????????????# % % # | | ??????????????# # | | ??????????????# ########### ################ | | ????????????????????????????###+###??????????????? | | ?????????????????????????????????????????????????? | | ?????????????????????????????????????????????????? | | ?????????????????????????????????????????????????? | | ?????????????????????????????????????????????????? | | ?????????????????????????????????????????????????? | | ?????????????????????????????????????????????????? | | ?????????????????????????????????????????????????? | | ?????????????????????????????????????????????????? | | ?????????????????????????????????????????????????? | | ?????????????????????????????????????????????????? | | ?????????????????????????????????????????????????? | +----------------------------------------------------+ Best States ------------- Heat Dissipation 59 Energy Generation 23 Energy Capacity 390 Matter Stores 400 Matter Capacity 400 Sight Range 16 Robot Scan Range 14 Terrain Scan Density 10 Armor Coverage 150 Resistance: KI 35 Resistance: TH 35 Resistance: EX 35 Resistance: EM 35 Resistance: I 35 Resistance: S 35 Resistance: P 35 Power Shielding 33 Utility Shielding 33 Weapon Shielding 66 Evasion (%) 40 Targeting Accuracy 6 Recoil Reduction 7 Offensive Hacking 20 Item Schematics ----------------- None Robot Schematics ------------------ None Fabricated ------------ Nothing Alien Tech Used ----------------- None Achievements -------------- None Challenges ------------ None Game ------ Seed ElectronTransmissionAxe Manual? 0 Play Time 00:28:28 Cumulative 301.1 hours Start 2023.03.03 @ 18:46:12 End 2023.03.03 @ 19:13:32 Sessions 1 Manual Loads 0 Difficulty Explorer Special Mode None Game No. 109 Rogue 0 Adventurer 1 Explorer 108 Win Type - Total 25 Types 13/1/5/3/0/1/1/0/1 Lore% 87 Gallery% 88 Achievement% 80 Wizard Run 0 Options --------- ASCII 0 Keyboard 1 Movement Numpad Keybinds 0 Fullscreen 0 Font 16/Terminus Map View 76x50 Tactical HUD 1 Map Filters BRIGHTNESS(150) Filters NONE Steam 1 RUN: 98deef4f-ae58-40d0-bbea-8bfd22799e2b